bitfinex/quotes_SOLUSD_20251115
["timestamp","ask_amount","ask_price","bid_price","bid_amount"]
[1763200095438,0.69,141.23,141.18,1.73836486]
[1763200095439,2.42836486,141.23,141.18,1.73836486]
[1763200095765,1.73836486,141.22,141.18,1.73836486]
[1763200095948,0.7,141.22,141.18,1.73836486]
[1763200096148,0.7,141.21,141.19,1.73836486]
[1763200097490,0.7,141.21,141.14,0.1]
[1763200097790,1.73836486,141.2,141.15,1.73836486]
[1763200098143,0.7,141.19,141.15,1.73836486]
[1763200098954,2.43836486,141.19,141.14,1.73836486]
[1763200099338,0.7,141.18,141.14,1.73836486]
[1763200099749,0.7,141.18,141.15,1.73836486]
[1763200101541,0.7,141.18,141.14,1.73836486]
[1763200102060,2.43836486,141.18,141.13,1.73836486]
[1763200102663,0.7,141.17,141.13,1.73836486]
[1763200104965,0.7,141.17,141.13,8.8239996]
[1763200105165,0.7,141.17,141.14,1.73836486]
[1763200105465,0.7,141.17,141.14,8.82350449]
[1763200105765,129.38956486,141.19,141.14,8.92350449]
[1763200105966,129.38956486,141.19,141.15,1.83836486]
[1763200105967,127.6512,141.19,141.15,1.83836486]
[1763200106271,0.7,141.21,141.17,1.73836486]
[1763200106456,104.3,141.23,141.15,11.62719255]
[1763200106457,24.38956486,141.2,141.15,11.62719255]
[1763200106971,25.08956486,141.2,141.15,11.62719255]
[1763200107357,25.08956486,141.2,141.16,7.08415981]
[1763200107555,22.6512,141.2,141.16,8.92252467]
[1763200108255,22.6512,141.2,141.17,1.83836486]
[1763200108563,22.6512,141.2,141.17,1.73836486]
[1763200108761,1.73836486,141.22,141.18,1.73836486]
[1763200108973,2.43836486,141.22,141.18,1.73836486]
[1763200109164,25.08956486,141.22,141.18,1.73836486]
[1763200109364,1.73836486,141.23,141.19,1.73836486]
[1763200109566,2.43836486,141.23,141.19,1.73836486]
[1763200109754,1.73836486,141.23,141.18,8.8211088]
[1763200110080,2.43836486,141.22,141.17,18.61065529]
[1763200110373,0.7,141.21,141.17,18.61065529]
[1763200110674,0.7,141.21,141.17,18.71065529]
[1763200110874,0.7,141.21,141.18,1.73836486]
[1763200111071,1.73836486,141.23,141.18,1.73836486]
[1763200111380,0.7,141.22,141.17,18.71065529]
[1763200111566,2.43836486,141.22,141.17,18.71065529]
[1763200111878,0.7,141.22,141.18,1.73836486]
[1763200112677,0.7,141.21,141.18,1.73836486]
[1763200113481,0.7,141.21,141.17,16.97229043]
[1763200113684,0.7,141.21,141.17,18.71065529]
[1763200114181,0.7,141.21,141.17,18.61065529]
[1763200114755,0.7,141.21,141.17,18.71065529]
[1763200116182,0.7,141.21,141.17,1.73836486]
[1763200116380,0.7,141.21,141.14,1.73836486]
[1763200116381,1.73836486,141.19,141.14,1.73836486]
[1763200116759,0.7,141.18,141.14,1.73836486]
[1763200117178,2.43836486,141.18,141.13,16.87427003]
[1763200117376,2.43836486,141.18,141.13,18.61263489]
[1763200117586,0.7,141.17,141.13,18.61263489]
[1763200119283,0.7,141.17,141.13,18.71263489]
[1763200120074,0.7,141.17,141.13,18.61263489]
[1763200120283,0.7,141.17,141.13,8.8238072]
[1763200122394,1.73836486,141.18,141.13,36.32679913]
[1763200122589,0.7,141.18,141.14,1.83836486]
[1763200123189,0.71,141.17,141.14,1.73836486]
[1763200125070,0.71,141.17,141.14,8.82327099]
[1763200125387,0.71,141.17,141.14,7.08490613]
[1763200125586,2.44836486,141.17,141.12,1.73836486]
[1763200125779,2.44836486,141.17,141.12,8.82437651]
[1763200125995,2.44836486,141.16,141.12,7.08601165]
[1763200126375,0.71,141.15,141.12,7.08601165]
[1763200128976,2.44836486,141.15,141.12,7.08601165]
[1763200129388,0.71,141.15,141.12,7.08601165]
[1763200129598,0.71,141.14,141.12,7.08601165]
[1763200131486,0.71,141.15,141.12,8.82437651]
[1763200132900,0.71,141.18,141.13,1.83836486]
[1763200133087,2.44836486,141.18,141.13,1.83836486]
[1763200133601,0.71,141.17,141.13,1.83836486]
[1763200134974,0.71,141.17,141.13,9.9007857]
[1763200138206,0.71,141.17,141.13,9.8007857]
[1763200139903,0.71,141.19,141.14,2.81552955]
[1763200140112,3.42552955,141.19,141.14,2.71552955]
[1763200140610,0.71,141.18,141.14,2.71552955]
[1763200141812,0.71,141.18,141.15,7.0846617]
[1763200142012,104.3,141.2,141.16,2.71552955]
[1763200142013,0.71,141.2,141.16,2.71552955]
[1763200142208,0.71,141.21,141.17,12.50435724]
[1763200142423,2.71552955,141.23,141.18,2.71552955]
[1763200142709,3.42552955,141.23,141.18,2.81552955]
[1763200142892,0.71,141.22,141.18,2.81552955]
[1763200143088,2.71552955,141.21,141.16,2.71552955]
[1763200143298,2.71552955,141.21,141.17,9.78882769]
[1763200143626,0.71,141.21,141.17,12.60435724]
[1763200143917,0.71,141.21,141.18,7.08315625]
[1763200145832,3.42552955,141.21,141.17,19.58779116]
[1763200146016,2.71552955,141.2,141.15,16.87334133]
[1763200146193,3.42552955,141.2,141.15,19.58887088]
[1763200146512,0.71,141.19,141.15,19.58887088]
[1763200146894,0.71,141.19,141.15,9.80004319]
[1763200147101,3.42552955,141.19,141.15,7.08451364]
[1763200147499,0.71,141.18,141.14,9.80051798]
[1763200148599,3.42552955,141.18,141.13,16.87410006]
[1763200148896,3.42552955,141.18,141.13,19.58962961]
[1763200149096,0.71,141.17,141.13,19.58998329]
[1763200149525,0.71,141.17,141.12,32.45277898]
[1763200149526,3.42552955,141.17,141.12,32.45277898]
[1763200150042,0.71,141.16,141.12,32.45278197]
[1763200152648,3.42552955,141.16,141.12,9.78882769]
[1763200152851,3.42552955,141.16,141.11,16.87535361]
[1763200153024,0.69,141.15,141.11,16.87535361]
[1763200153224,3.40552955,141.15,141.11,16.87535361]
[1763200153424,0.69,141.14,141.11,16.87535361]
[1763200153629,0.69,141.14,141.1,7.086844]
[1763200153839,3.40552955,141.14,141.1,7.086844]
[1763200154236,3.40552955,141.13,141.09,9.78882769]
[1763200154545,3.40552955,141.13,141.09,16.8764547]
[1763200154745,0.69,141.12,141.09,16.8764547]
[1763200155722,104.3,141.21,141.09,16.8764547]
[1763200155723,104.3,141.21,141.11,2.71552955]
[1763200155925,0.69,141.16,141.12,2.71552955]
[1763200156138,0.69,141.16,141.11,0.1]
[1763200156318,0.69,141.16,141.12,2.71552955]
[1763200156920,0.69,141.16,141.12,9.80137677]
[1763200157135,0.69,141.16,141.12,2.71552955]
[1763200157926,3.40552955,141.16,141.11,7.08658985]
[1763200158131,3.40552955,141.16,141.11,9.9021194]
[1763200158336,0.69,141.15,141.11,9.9021194]
[1763200158545,0.69,141.15,141.11,9.8021194]
[1763200158722,0.69,141.15,141.1,16.87596166]
[1763200158925,0.69,141.15,141.11,9.80188109]
[1763200159152,0.69,141.15,141.11,7.08635154]
[1763200159929,0.69,141.15,141.11,9.80188109]
[1763200160931,0.69,141.15,141.11,7.08635154]
[1763200161130,0.69,141.15,141.11,9.80188109]
[1763200164851,0.69,141.17,141.13,2.71552955]
[1763200165039,0.69,141.16,141.13,2.71552955]
[1763200165242,0.69,141.17,141.13,2.81552955]
[1763200165449,0.69,141.17,141.13,2.71552955]
[1763200165844,3.40552955,141.17,141.12,9.78882769]
[1763200166150,0.69,141.16,141.12,12.50435724]
[1763200166850,0.69,141.16,141.12,12.60435724]
[1763200167159,0.69,141.16,141.13,7.08566569]
[1763200167933,0.69,141.16,141.13,9.80119524]
[1763200169149,0.69,141.18,141.14,2.71552955]
[1763200169455,0.69,141.17,141.13,9.80119524]
[1763200170628,0.69,141.17,141.13,7.08566569]
[1763200170829,0.69,141.17,141.13,9.80119524]
[1763200171048,0.69,141.17,141.13,27.61535948]
[1763200171247,0.69,141.17,141.13,27.51535948]
[1763200173755,0.69,141.17,141.13,24.79982993]
[1763200173959,0.69,141.17,141.13,7.08566569]
[1763200174262,0.69,141.17,141.13,9.80119524]
[1763200174463,2.71552955,141.15,141.11,9.78882769]
[1763200174878,0.69,141.14,141.11,9.78882769]
[1763200175466,0.69,141.14,141.11,16.8752003]
[1763200176259,0.69,141.14,141.11,19.59072985]
[1763200176456,0.69,141.14,141.1,28.38249968]
[1763200176968,0.69,141.14,141.1,9.80255452]
[1763200178780,0.69,141.14,141.1,7.08702497]
[1763200178954,0.69,141.14,141.11,2.71552955]
[1763200179345,0.69,141.14,141.12,2.71552955]
[1763200179876,104.3,141.2,141.13,7.08566569]
[1763200180068,0.69,141.15,141.13,7.08566569]
[1763200181157,0.69,141.17,141.13,9.90119524]
[1763200181362,0.69,141.17,141.14,2.71552955]
[1763200181550,0.69,141.16,141.14,2.71552955]
[1763200181948,22.6512,141.21,141.15,9.90000714]
[1763200182153,2.71552955,141.18,141.13,7.0854234]
[1763200182358,2.71552955,141.18,141.13,9.80095295]
[1763200182555,0.69,141.17,141.13,9.80095295]
[1763200182861,2.71552955,141.16,141.12,16.87487392]
[1763200183166,2.71552955,141.16,141.12,7.08604623]
[1763200183472,0.72,141.15,141.12,7.08604623]
[1763200184059,0.72,141.15,141.12,9.80157578]
[1763200184258,0.72,141.15,141.13,2.71552955]
[1763200185064,0.72,141.15,141.12,16.87487392]
[1763200185270,0.72,141.15,141.13,2.71552955]
[1763200185960,0.72,141.15,141.12,19.59040347]
[1763200186687,0.72,141.15,141.13,2.71552955]
[1763200186862,0.72,141.15,141.12,34.59029342]
[1763200187066,0.72,141.15,141.13,2.71552955]
[1763200187684,2.71552955,141.18,141.13,2.71552955]
[1763200187981,0.72,141.16,141.13,2.71552955]
[1763200188273,0.72,141.16,141.14,7.08516366]
[1763200189555,0.72,141.16,141.12,9.80147845]
[1763200189761,3.43552955,141.16,141.11,19.59092941]
[1763200190276,0.72,141.15,141.11,19.59092941]
[1763200190650,0.72,141.15,141.1,9.80246655]
[1763200191255,3.43552955,141.15,141.1,9.80246655]
[1763200191576,3.43552955,141.15,141.1,7.086937]
[1763200191769,0.72,141.14,141.1,7.086937]
[1763200191973,0.72,141.14,141.09,19.59182296]
[1763200192282,3.43552955,141.14,141.09,19.59182296]
[1763200192475,0.72,141.14,141.11,2.71552955]
[1763200192661,0.72,141.13,141.1,2.71552955]
[1763200192862,0.72,141.13,141.09,19.59182296]
[1763200193269,0.72,141.13,141.1,2.71552955]
[1763200193975,0.72,141.13,141.09,9.78882769]
[1763200194183,0.72,141.13,141.09,12.50435724]
[1763200195153,0.72,141.13,141.09,16.87634646]
[1763200195464,0.72,141.13,141.09,19.59187601]
[1763200196857,0.72,141.13,141.09,18.61527]
[1763200197083,0.72,141.13,141.1,1.73892354]
[1763200197281,0.72,141.13,141.09,16.87634646]
[1763200197471,0.72,141.13,141.1,1.73892354]
[1763200199084,0.72,141.13,141.09,9.78882769]
[1763200199270,0.72,141.13,141.09,18.61538676]
[1763200199874,0.72,141.13,141.09,8.82655907]
[1763200200399,2.45892354,141.13,141.08,18.61572519]
[1763200200891,2.45892354,141.12,141.07,18.61636502]
[1763200201064,22.6512,141.11,141.05,0.1]
[1763200201386,1.73892354,141.07,141.05,0.1]
[1763200201587,0.72,141.06,141.05,0.1]
[1763200202159,0.72,141.06,141.02,30.13756188]
[1763200202160,0.72,141.06,141.02,21.30757484]
[1763200202363,0.72,141.06,141.01,0.1]
[1763200202583,1.73892354,141.05,141.01,0.1]
[1763200202980,1.73892354,141.03,141.01,0.1]
[1763200203172,1.73892354,141.02,141.01,0.1]
[1763200203376,1.73892354,141.01,140.96,30.24068598]
[1763200203581,2.45892354,141.01,140.96,1.83892354]
[1763200203889,2.45892354,141.0,140.96,0.1]
[1763200204094,0.72,141.0,140.96,8.93297611]
[1763200204402,0.72,140.99,140.96,8.93297611]
[1763200204568,0.72,140.99,140.96,0.1]
[1763200204883,0.72,140.99,140.96,7.19400943]
[1763200205068,0.72,140.99,140.96,8.93293297]
[1763200205865,2.45892354,140.99,140.96,0.1]
[1763200206303,0.72,140.98,140.96,0.1]
[1763200208088,2.45892354,140.98,140.96,0.1]
[1763200208272,1.73892354,140.97,140.96,0.1]
[1763200208462,25.11012354,140.97,140.91,21.32575084]
[1763200208670,1.73892354,140.93,140.89,16.88656351]
[1763200208866,1.73892354,140.93,140.89,28.42348666]
[1763200209074,2.45892354,140.92,140.88,7.09813202]
[1763200209289,2.45892354,140.92,140.84,35.49881191]
[1763200209290,1.73892354,140.9,140.81,1.99999999]
[1763200209598,1.73892354,140.92,140.87,1.73892354]
[1763200209980,2.45892354,140.92,140.87,1.73892354]
[1763200210179,1.73892354,140.94,140.89,1.73892354]
[1763200210386,0.72,141.0,140.92,1.73892354]
[1763200210576,1.73892354,140.98,140.93,1.73892354]
[1763200210984,2.43892354,140.97,140.91,22.6512]
[1763200211184,1.73892354,140.94,140.89,1.73892354]
[1763200211388,1.73892354,140.93,140.89,21.32878319]
[1763200211579,1.73892354,140.92,140.89,21.32878319]
[1763200211796,1.73892354,140.92,140.88,11.52775123]
[1763200211984,2.43892354,140.92,140.88,9.78882769]
[1763200212193,2.43892354,140.91,140.86,8.83804417]
[1763200212493,0.7,140.9,140.86,21.33333333]
[1763200212683,2.43892354,140.9,140.85,11.52775123]
[1763200213093,0.7,140.9,140.86,1.73892354]
[1763200213613,0.7,140.9,140.86,8.83803828]
[1763200213791,1.73892354,140.93,140.88,1.73892354]
[1763200213983,1.73892354,140.92,140.87,9.78882769]
[1763200214182,1.73892354,140.92,140.88,1.73892354]
[1763200214393,1.73892354,140.93,140.88,1.73892354]
[1763200214594,23.3312,140.94,140.87,9.78882769]
[1763200214795,1.73892354,140.91,140.87,9.78882769]
[1763200214994,1.73892354,140.91,140.85,43.98605047]
[1763200214995,1.73892354,140.91,140.86,11.52775123]
[1763200215302,0.68,140.9,140.85,21.33485047]
[1763200215601,0.68,140.9,140.85,1.73892354]
[1763200215807,1.73892354,140.91,140.85,9.78882769]
[1763200215978,1.73892354,140.93,140.88,1.73892354]
[1763200216599,1.73892354,140.93,140.89,1.73892354]
[1763200216904,0.71,140.98,140.91,1.73892354]
[1763200217308,1.73892354,140.96,140.91,1.73892354]
[1763200217603,0.71,140.98,140.93,8.8342378]
[1763200217786,1.73892354,140.99,140.95,1.73892354]
[1763200217982,1.73892354,140.99,140.94,1.73892354]
[1763200218707,0.71,140.98,140.95,1.73892354]
[1763200218909,1.73892354,141.0,140.95,1.73892354]
[1763200219081,0.71,141.0,140.96,1.73892354]
[1763200219277,0.71,141.0,140.94,6.95569416]
[1763200219910,0.71,141.0,140.96,1.73892354]
[1763200220695,0.71,141.03,140.98,1.73892354]
[1763200220900,2.44892354,141.05,141.0,1.73892354]
[1763200221204,2.44892354,141.05,141.01,1.73892354]
[1763200221712,2.44892354,141.06,141.02,1.73892354]
[1763200222209,0.71,141.06,141.02,1.73892354]
[1763200222779,2.44892354,141.06,141.02,1.73892354]
[1763200223088,1.73892354,141.05,141.01,1.73892354]
[1763200223282,2.44892354,141.05,141.01,1.73892354]
[1763200223796,0.71,141.05,141.01,1.73892354]
[1763200224005,0.71,141.05,141.02,1.73892354]
[1763200224200,2.44892354,141.08,141.03,1.73892354]
[1763200224707,2.44892354,141.07,141.02,1.73892354]
[1763200225013,2.44892354,141.07,141.03,1.73892354]
[1763200225193,2.44892354,141.07,141.02,1.73892354]
[1763200225713,0.71,141.06,141.02,1.73892354]
[1763200226219,0.71,141.09,141.04,1.73892354]
[1763200226424,0.71,141.08,141.04,1.73892354]
[1763200226718,22.6512,141.11,141.05,1.73892354]
[1763200226915,0.71,141.09,141.05,1.73892354]
[1763200227212,0.71,141.09,141.04,1.73892354]
[1763200227213,2.44892354,141.09,141.04,1.73892354]
[1763200227723,0.71,141.08,141.04,1.73892354]
[1763200228094,0.71,141.08,141.05,1.73892354]
[1763200229704,0.71,141.08,141.04,1.73892354]
[1763200230213,1.73892354,141.07,141.02,21.30908832]
[1763200230429,1.73892354,141.07,141.02,1.73892354]
[1763200230625,0.71,141.06,141.02,1.73892354]
[1763200231814,1.73892354,141.05,140.97,17.73371259]
[1763200232020,1.73892354,141.05,141.0,1.73892354]
[1763200232228,0.71,141.04,141.0,1.73892354]
[1763200232721,0.71,141.04,140.99,1.73892354]
[1763200232897,0.71,141.04,140.95,11.52775123]
[1763200233091,1.73892354,141.0,140.95,1.73892354]
[1763200233513,0.71,140.99,140.95,1.73892354]
[1763200234198,0.71,140.99,140.95,8.83355445]
[1763200234626,0.71,140.99,140.96,1.73892354]
[1763200234916,1.73892354,141.04,140.98,1.73892354]
[1763200235126,1.73892354,141.04,140.99,1.73892354]
[1763200235127,2.44892354,141.04,140.99,1.73892354]
[1763200235726,0.71,141.03,141.0,8.83112212]
[1763200235900,1.73892354,141.05,141.0,8.83112212]
[1763200236094,0.71,141.04,141.0,8.83112212]
[1763200236705,2.44892354,141.06,141.0,7.49219858]
[1763200237021,0.71,141.06,141.02,4.23129451]
[1763200237520,0.71,141.06,141.03,4.23129451]
[1763200237904,0.71,141.06,141.03,11.32188501]
[1763200238107,4.23129451,141.08,141.03,11.32188501]
[1763200238312,4.94129451,141.08,141.03,11.72188501]
[1763200238905,0.71,141.07,141.03,11.32188501]
[1763200239113,4.94129451,141.07,140.98,32.44002769]
[1763200239401,4.94129451,141.07,141.02,4.23129451]
[1763200239609,0.71,141.06,141.02,11.32240546]
[1763200239814,0.71,141.06,141.03,4.23129451]
[1763200240501,4.23129451,141.08,141.03,4.23129451]
[1763200240716,0.71,141.07,141.03,4.23129451]
[1763200240902,4.23129451,141.08,141.03,4.23129451]
[1763200240903,0.71,141.08,141.04,4.23129451]
[1763200241104,4.23129451,141.09,141.04,4.23129451]
[1763200241308,0.71,141.07,141.04,4.23129451]
[1763200242507,0.71,141.07,141.03,4.23129451]
[1763200242723,4.94129451,141.07,141.02,11.32232898]
[1763200242915,0.68,141.06,141.02,11.32232898]
[1763200243827,0.68,141.08,141.04,4.23129451]
[1763200244131,4.23129451,141.09,141.04,4.23129451]
[1763200244440,26.88249451,141.09,141.03,4.23129451]
[1763200244609,0.68,141.08,141.03,4.23129451]
[1763200244807,0.68,141.08,141.0,27.51877761]
[1763200245001,0.68,141.08,141.02,4.23129451]
[1763200245002,4.91129451,141.08,141.02,4.23129451]
[1763200245502,0.68,141.07,141.02,4.23129451]
[1763200246335,4.91129451,141.07,141.01,26.88249451]
[1763200246827,0.68,141.06,141.02,4.23129451]
[1763200248629,104.98,141.08,141.03,11.32198443]
[1763200248829,0.68,141.07,141.04,4.23129451]
[1763200249035,0.68,141.07,141.03,11.72198443]
[1763200249335,0.68,141.07,141.04,4.23129451]
[1763200250029,0.68,141.07,141.02,14.0201222]
[1763200250230,4.91129451,141.07,141.02,14.0201222]
[1763200250420,0.68,141.07,141.02,14.0201222]
[1763200250934,0.68,141.07,141.02,21.11113211]
[1763200251128,0.68,141.07,141.02,11.32230442]
[1763200251835,0.68,141.07,141.03,4.23129451]
[1763200252438,0.68,141.07,141.04,4.23129451]
[1763200253129,0.68,141.07,141.04,11.32120507]
[1763200254141,104.3,141.08,141.04,11.32120507]
[1763200254334,104.98,141.08,141.04,11.32120507]
[1763200254548,0.68,141.07,141.03,4.23129451]
[1763200255428,104.98,141.08,141.04,11.32148169]
[1763200255828,0.68,141.07,141.04,7.09018718]
[1763200257143,104.98,141.08,141.04,7.09018718]
[1763200257642,0.68,141.07,141.04,7.09018718]
[1763200258549,25.3703946,141.09,141.04,7.09018718]
[1763200258857,0.68,141.08,141.04,7.09018718]
[1763200261130,0.68,141.08,141.02,30.23535943]
[1763200261131,2.7191946,141.07,141.02,9.78882769]
[1763200261452,3.3991946,141.08,141.03,2.7191946]
[1763200261627,0.68,141.07,141.03,2.7191946]
[1763200261822,0.68,141.07,141.02,3.1191946]
[1763200262024,3.3991946,141.07,141.02,2.7191946]
[1763200262227,2.7191946,141.06,141.0,64.1191946]
[1763200262459,2.7191946,141.05,141.0,64.1191946]
[1763200262630,2.7191946,141.06,141.01,12.90802229]
[1763200262834,0.68,141.07,141.04,2.7191946]
[1763200264332,0.68,141.07,141.04,9.80909242]
[1763200267260,22.6512,141.09,141.04,9.80909242]
[1763200267561,0.68,141.08,141.05,2.7191946]
[1763200268951,0.68,141.08,141.04,9.80909242]
[1763200270639,0.68,141.1,141.07,2.7191946]
[1763200270845,0.68,141.12,141.08,2.7191946]
[1763200271236,3.3991946,141.12,141.07,2.7191946]
[1763200271436,3.3991946,141.12,141.07,9.80744256]
[1763200271653,3.3891946,141.11,141.05,17.27828873]
[1763200271868,3.3891946,141.11,141.06,2.7191946]
[1763200272061,0.67,141.1,141.06,2.7191946]
[1763200272262,0.67,141.1,141.07,2.7191946]
[1763200272738,0.67,141.1,141.06,3.1191946]
[1763200273153,0.67,141.1,141.06,2.7191946]
[1763200273638,0.67,141.1,141.06,9.80808107]
[1763200273838,25.3703946,141.09,141.04,7.08985555]
[1763200274059,2.7191946,141.08,141.03,19.59849424]
[1763200274247,3.4191946,141.08,141.03,19.59849424]
[1763200274563,0.7,141.07,141.03,19.59849424]
[1763200275261,0.7,141.07,141.04,2.7191946]
[1763200275767,0.7,141.07,141.05,7.0896845]
[1763200276661,3.4191946,141.09,141.05,7.0896845]
[1763200276862,0.7,141.08,141.04,9.80915763]
[1763200277061,0.7,141.1,141.07,2.7191946]
[1763200277265,3.4191946,141.12,141.07,3.1191946]
[1763200277469,22.6512,141.11,141.07,3.1191946]
[1763200277642,23.3512,141.11,141.07,9.80767699]
[1763200277844,0.7,141.1,141.07,9.80767699]
[1763200278461,22.6512,141.11,141.08,2.7191946]
[1763200278667,0.9,141.13,141.09,2.7191946]
[1763200278843,0.7,141.12,141.09,2.7191946]
[1763200279161,0.2,141.13,141.09,2.7191946]
[1763200279353,0.7,141.12,141.09,2.7191946]
[1763200279765,0.7,141.12,141.09,9.80652974]
[1763200280866,0.2,141.13,141.1,2.7191946]
[1763200281043,0.9,141.13,141.1,2.7191946]
[1763200282065,0.9,141.13,141.1,9.80631236]
[1763200282259,0.2,141.13,141.11,2.7191946]
[1763200282462,0.9,141.13,141.1,9.78882769]
[1763200282759,0.9,141.13,141.1,12.50802229]
[1763200283467,0.2,141.13,141.1,12.90802229]
[1763200283660,0.2,141.13,141.1,12.50802229]
[1763200283858,0.9,141.13,141.1,12.50802229]
[1763200284066,0.9,141.13,141.09,9.80679934]
[1763200284269,0.7,141.12,141.09,9.80679934]
[1763200284565,0.7,141.12,141.08,9.8071778]
[1763200285249,0.7,141.12,141.09,2.7191946]
[1763200285853,0.2,141.13,141.1,3.1191946]
[1763200286055,0.2,141.13,141.11,2.7191946]
[1763200286284,0.2,141.13,141.12,12.50802229]
[1763200286586,0.2,141.13,141.12,15.62721689]
[1763200287078,0.7,141.19,141.16,2.7191946]
[1763200288049,0.7,141.19,141.16,9.80313499]
[1763200288244,0.7,141.19,141.16,2.7191946]
[1763200288470,3.4191946,141.19,141.14,9.8040326]
[1763200288866,22.6512,141.2,141.15,2.7191946]
[1763200288867,0.7,141.18,141.15,2.7191946]
[1763200290075,22.6512,141.2,141.17,2.7191946]
[1763200290268,23.3512,141.2,141.18,2.7191946]
[1763200290484,0.7,141.2,141.18,2.7191946]
[1763200290862,0.2,141.21,141.18,2.7191946]
[1763200291061,0.9,141.21,141.19,2.7191946]
[1763200291664,0.2,141.21,141.2,12.50802229]
[1763200292351,0.2,141.21,141.2,19.59017526]
[1763200292550,0.2,141.21,141.2,12.50802229]
[1763200292766,0.9,141.21,141.14,0.2]
[1763200293071,0.9,141.21,141.17,2.7191946]
[1763200293072,23.5512,141.21,141.17,2.7191946]
[1763200293277,0.7,141.2,141.17,2.7191946]
[1763200294466,0.7,141.2,141.17,9.80279227]
[1763200295483,0.7,141.2,141.17,2.7191946]
[1763200295660,0.7,141.2,141.17,9.80281607]
[1763200296476,0.7,141.2,141.18,9.80225736]
[1763200297782,0.2,141.21,141.19,2.7191946]
[1763200297975,0.9,141.21,141.19,2.7191946]
[1763200298378,0.2,141.21,141.19,2.7191946]
[1763200298572,0.9,141.21,141.19,2.7191946]
[1763200298969,0.9,141.21,141.19,9.80162841]
[1763200299777,0.2,141.21,141.19,9.80162841]
[1763200300261,0.2,141.21,141.19,2.7191946]
[1763200300463,0.9,141.21,141.19,2.7191946]
[1763200303686,0.9,141.21,141.19,9.80184732]
[1763200305565,0.9,141.21,141.19,2.7191946]
[1763200305885,0.9,141.21,141.19,9.80176614]
[1763200306183,0.2,141.21,141.19,9.80176614]
[1763200306881,0.2,141.21,141.2,2.7191946]
[1763200308101,0.86,141.21,141.19,7.08257154]
[1763200308279,0.86,141.21,141.18,9.80228031]
[1763200308483,0.66,141.2,141.19,2.7191946]
[1763200309194,0.2,141.21,141.19,2.7191946]
[1763200309195,0.86,141.21,141.19,2.7191946]
[1763200311091,0.86,141.21,141.15,2.7191946]
[1763200311092,3.3791946,141.2,141.15,2.7191946]
[1763200311595,3.3791946,141.19,141.14,2.7191946]
[1763200311794,2.7191946,141.17,141.13,2.7191946]
[1763200312298,0.66,141.16,141.13,2.7191946]
[1763200312870,3.3791946,141.16,141.12,9.80520063]
[1763200313087,3.3791946,141.16,141.12,7.08600603]
[1763200313277,0.66,141.15,141.11,19.59447145]
[1763200313689,3.3791946,141.15,141.11,19.59447145]
[1763200314201,0.66,141.14,141.11,19.59447145]
[1763200318094,0.66,141.14,141.1,9.80627665]
[1763200318292,0.66,141.14,141.09,9.78882769]
[1763200318293,3.3791946,141.14,141.09,9.80668846]
[1763200318499,22.6512,141.15,141.11,2.7191946]
[1763200318674,0.66,141.14,141.11,2.7191946]
[1763200318989,0.66,141.14,141.11,8.82520054]
[1763200319994,1.73853057,141.16,141.13,1.73853057]
[1763200319995,0.66,141.16,141.13,1.73853057]
[1763200320176,1.73853057,141.17,141.13,1.73853057]
[1763200320177,0.66,141.15,141.13,1.73853057]
[1763200320372,0.66,141.15,141.12,1.73853057]
[1763200320575,23.3112,141.15,141.1,1.73853057]
[1763200320776,25.04973057,141.15,141.11,1.73853057]
[1763200320992,0.66,141.14,141.11,1.73853057]
[1763200321379,0.66,141.14,141.1,7.08682712]
[1763200321578,0.66,141.14,141.1,8.82535769]
[1763200321995,0.66,141.14,141.1,1.73853057]
[1763200322308,2.39853057,141.14,141.09,18.6148458]
[1763200322674,0.66,141.13,141.09,18.6148458]
[1763200323411,0.66,141.13,141.1,8.82557525]
[1763200324395,0.66,141.13,141.11,1.73853057]
[1763200324576,23.3112,141.15,141.11,1.73853057]
[1763200324776,22.6512,141.15,141.12,1.73853057]
[1763200325008,0.66,141.14,141.12,1.73853057]
[1763200325683,0.66,141.14,141.11,1.73853057]